bitfinex/quotes_BTCUSD_20230405
["timestamp","ask_amount","ask_price","bid_price","bid_amount"]
[1680694759547,0.002,28532.0,28531.0,0.2525308]
[1680694760421,0.01518261,28533.0,28531.0,0.2525308]
[1680694760846,0.01518261,28533.0,28532.0,0.43240244]
[1680694761684,0.01618261,28533.0,28532.0,0.43240244]
[1680694762743,0.01618261,28533.0,28532.0,0.43510244]
[1680694763180,0.01618261,28533.0,28532.0,0.0027]
[1680694765834,0.01618261,28533.0,28532.0,0.011143]
[1680694766875,0.01618261,28533.0,28532.0,0.384796]
[1680694768157,0.01618261,28533.0,28532.0,0.19508572]
[1680694770086,0.22913891,28533.0,28532.0,0.0016]
[1680694774969,0.53389317,28533.0,28532.0,0.0016]
[1680694775154,0.73028493,28533.0,28532.0,0.0016]
[1680694775394,0.64848493,28533.0,28532.0,0.0016]
[1680694776269,0.64748493,28533.0,28532.0,0.0016]
[1680694776482,0.60515793,28533.0,28532.0,0.0016]
[1680694776689,0.59615793,28533.0,28532.0,0.0016]
[1680694777088,0.61215793,28533.0,28532.0,0.0016]
[1680694777540,0.66405893,28533.0,28532.0,0.0016]
[1680694778386,0.61215793,28533.0,28532.0,0.0016]
[1680694779237,0.66498993,28533.0,28532.0,0.0016]
[1680694780057,0.61215793,28533.0,28532.0,0.0016]
[1680694780869,0.66530793,28533.0,28532.0,0.0016]
[1680694781279,0.61215793,28533.0,28532.0,0.0016]
[1680694781488,0.66608793,28533.0,28532.0,0.0016]
[1680694781697,0.61215793,28533.0,28532.0,0.0016]
[1680694781911,0.46709317,28533.0,28532.0,0.0016]
[1680694782418,0.46709317,28533.0,28529.0,0.20908599]
[1680694782631,0.58429611,28532.0,28529.0,0.66829749]
[1680694782844,0.58429611,28532.0,28529.0,0.54314019]
[1680694783055,0.58429611,28532.0,28529.0,0.66847749]
[1680694783280,0.35471056,28532.0,28529.0,0.66847749]
[1680694783503,0.35471056,28532.0,28530.0,0.43371389]
[1680694783763,0.35471056,28532.0,28531.0,0.40657477]
[1680694783976,0.01548261,28533.0,28531.0,0.64665852]
[1680694784187,0.01533261,28533.0,28532.0,0.12510778]
[1680694784397,0.01518261,28533.0,28532.0,0.12510778]
[1680694784607,0.01518261,28533.0,28532.0,0.29223025]
[1680694785082,0.01518261,28533.0,28532.0,0.16712247]
[1680694785934,0.01718261,28533.0,28531.0,0.7057394]
[1680694786149,0.01518261,28533.0,28532.0,0.16712247]
[1680694786384,0.01518261,28533.0,28532.0,0.62265633]
[1680694786385,0.01718261,28533.0,28532.0,0.62265633]
[1680694786572,0.01518261,28533.0,28532.0,0.61765633]
[1680694786997,0.01718261,28533.0,28532.0,0.61765633]
[1680694787211,0.01518261,28533.0,28532.0,0.61765633]
[1680694787637,0.01718261,28533.0,28532.0,0.62265633]
[1680694788283,0.01718261,28533.0,28532.0,0.60312248]
[1680694790348,0.01718261,28533.0,28532.0,0.60902248]
[1680694791545,0.01718261,28533.0,28532.0,0.81794421]
[1680694791746,0.01718261,28533.0,28532.0,0.8084555]
[1680694792279,0.01718261,28533.0,28532.0,0.39505173]
[1680694792488,0.01718261,28533.0,28532.0,0.19463]
[1680694792933,0.01718261,28533.0,28532.0,2.83067941]
[1680694793148,0.01718261,28533.0,28532.0,2.88054056]
[1680694793367,0.01518261,28533.0,28532.0,2.87554056]
[1680694793586,0.01618261,28533.0,28532.0,2.89554056]
[1680694794022,0.01618261,28533.0,28532.0,3.24197137]
[1680694794240,0.00108261,28533.0,28532.0,3.24475137]
[1680694794455,0.02398,28537.0,28536.0,1.1]
[1680694794670,0.02398,28537.0,28536.0,2.13181056]
[1680694795499,0.02498,28537.0,28536.0,2.15281056]
[1680694795918,0.02498,28537.0,28536.0,2.23711056]
[1680694797605,0.02498,28537.0,28536.0,2.27290418]
[1680694797817,0.02498,28537.0,28536.0,2.44811418]
[1680694798694,0.02498,28537.0,28536.0,1.34811418]
[1680694799141,0.02498,28537.0,28536.0,1.42921418]
[1680694799321,0.02498,28537.0,28536.0,2.96348826]
[1680694799560,0.02498,28537.0,28536.0,2.52921418]
[1680694800431,0.02498,28537.0,28536.0,2.73767214]
[1680694801735,0.02498,28537.0,28536.0,3.07435363]
[1680694801945,0.00051,28542.0,28538.0,0.3686]
[1680694802155,0.00051,28546.0,28539.0,0.87957887]
[1680694802388,0.02449,28545.0,28540.0,0.0704]
[1680694803072,0.02549,28545.0,28540.0,0.0704]
[1680694803281,0.02549,28545.0,28540.0,0.04941619]
[1680694803725,0.13982225,28543.0,28539.0,0.16335053]
[1680694803914,0.28171906,28543.0,28542.0,0.0028]
[1680694804118,0.12899535,28543.0,28542.0,0.0028]
[1680694804372,0.12848535,28543.0,28542.0,0.0028]
[1680694804795,0.12948535,28543.0,28542.0,0.0028]
[1680694804971,0.12848535,28543.0,28542.0,0.0028]
[1680694805179,0.12948535,28543.0,28542.0,0.0118]
[1680694810103,0.48419591,28543.0,28542.0,0.0118]
[1680694810307,0.48470591,28543.0,28542.0,0.0118]
[1680694816816,0.48470591,28543.0,28542.0,0.01087768]
[1680694817046,0.46305999,28543.0,28542.0,0.01087768]
[1680694817260,0.54485999,28543.0,28542.0,0.01087768]
[1680694817475,0.53908469,28543.0,28542.0,0.01087768]
[1680694817694,0.53857469,28543.0,28542.0,0.01087768]
[1680694818141,0.57541703,28543.0,28542.0,0.01087768]
[1680694818358,0.77434284,28543.0,28542.0,0.01087768]
[1680694818568,0.88613956,28543.0,28542.0,0.01087768]
[1680694818780,1.18613956,28543.0,28535.0,0.00018]
[1680694819000,0.0815,28536.0,28535.0,0.00018]
[1680694819217,0.22339681,28536.0,28535.0,0.00018]
[1680694819450,0.0815,28536.0,28535.0,0.00018]
[1680694820737,0.44121056,28536.0,28535.0,0.00118]
[1680694822134,0.62962506,28536.0,28535.0,0.00268]
[1680694822340,0.59963406,28536.0,28535.0,0.0025]
[1680694822541,0.60011206,28536.0,28535.0,0.0025]
[1680694824510,0.44151056,28536.0,28535.0,0.0025]
[1680694824730,0.58211256,28536.0,28535.0,0.0025]
[1680694825156,0.72835882,28536.0,28535.0,0.0025]
[1680694825377,0.58211256,28536.0,28535.0,0.0025]
[1680694825587,0.58211256,28536.0,28535.0,0.001]
[1680694825800,0.57711256,28536.0,28530.0,0.00018]
[1680694826010,0.0818,28531.0,28530.0,0.00018]
[1680694826221,0.43651056,28531.0,28530.0,0.36578794]
[1680694826429,0.43651056,28531.0,28530.0,0.44916186]
[1680694826638,0.43651056,28531.0,28530.0,0.36578794]
[1680694827110,0.43751056,28531.0,28530.0,0.37378794]
[1680694828377,0.43802056,28531.0,28530.0,0.008]
[1680694828592,0.43751056,28531.0,28530.0,0.008]
[1680694831148,0.35571056,28531.0,28530.0,0.008]
[1680694831975,0.35622056,28531.0,28530.0,0.11065387]
[1680694832209,0.35622056,28531.0,28530.0,0.11225387]
[1680694838516,0.00151,28531.0,28530.0,0.11225387]
[1680694838699,0.001,28531.0,28530.0,0.0096]
[1680694838918,0.001,28531.0,28530.0,0.54996588]
[1680694839286,0.001,28531.0,28530.0,0.46816588]
[1680694839870,0.00089619,28531.0,28530.0,0.46816588]
[1680694840473,0.00089619,28531.0,28530.0,0.0096]
[1680694844628,0.00089619,28531.0,28530.0,0.37699393]
[1680694850050,0.00077959,28531.0,28530.0,0.37699393]
[1680694854534,0.00077959,28531.0,28530.0,0.46036785]
[1680694856439,0.00077959,28531.0,28530.0,0.58542873]
[1680694857062,0.00077959,28531.0,28530.0,0.46036785]
[1680694857725,0.00077959,28531.0,28530.0,0.58542873]
[1680694857927,0.00077959,28531.0,28530.0,0.46036785]
[1680694858468,0.00077959,28531.0,28530.0,0.50205481]
[1680694861561,0.00066113,28531.0,28530.0,0.54374177]
[1680694862673,0.00066113,28531.0,28530.0,0.37699393]
[1680694864053,0.00066113,28531.0,28530.0,0.58631793]
[1680694864507,0.35537169,28531.0,28530.0,0.37699393]
[1680694864623,0.35537169,28531.0,28530.0,0.37717393]
[1680694869082,0.35537169,28531.0,28530.0,0.00978]
[1680694869296,0.35537169,28531.0,28530.0,0.0096]
[1680694870032,0.35525967,28531.0,28530.0,0.0096]
[1680694871814,0.35576967,28531.0,28530.0,0.0096]
[1680694872163,0.35525967,28531.0,28530.0,0.0096]
[1680694873388,0.35525967,28531.0,28530.0,0.36840728]
[1680694873608,0.35525967,28531.0,28530.0,0.36858728]
[1680694877189,0.00054911,28531.0,28530.0,0.36858728]
[1680694877397,0.00054911,28531.0,28530.0,0.36840728]
[1680694880145,0.00044174,28531.0,28530.0,0.36840728]
[1680694884888,0.25508638,28532.0,28530.0,0.36858728]
[1680694885117,0.60979694,28532.0,28531.0,0.20946596]
[1680694885329,0.35471056,28532.0,28531.0,0.20946596]
[1680694887438,0.35471056,28532.0,28531.0,0.21146596]
[1680694887662,0.35471056,28532.0,28531.0,0.22006596]
[1680694890141,0.35459866,28532.0,28531.0,0.22018596]
[1680694892617,0.00051,28533.0,28531.0,0.22018596]
[1680694892828,0.35471056,28533.0,28532.0,0.16756605]
[1680694893079,0.35522056,28533.0,28532.0,0.16756605]
[1680694893728,0.35522056,28533.0,28532.0,0.17626605]
[1680694894132,0.35622056,28533.0,28532.0,0.18526605]
[1680694894342,0.35522056,28533.0,28532.0,0.38573201]
[1680694894559,0.35522056,28533.0,28532.0,0.17626605]
[1680694894968,0.36022056,28533.0,28532.0,0.38673201]
[1680694896017,0.35522056,28533.0,28532.0,0.17626605]
[1680694896229,0.35622056,28533.0,28532.0,0.18526605]
[1680694897587,0.35622056,28533.0,28532.0,0.52892515]
[1680694900180,0.3555979,28533.0,28532.0,0.52910515]
[1680694900618,0.3555979,28533.0,28532.0,0.73857111]
[1680694900833,0.3555979,28533.0,28532.0,0.52910515]
[1680694901477,0.3561079,28533.0,28532.0,0.52892515]
[1680694901683,0.3555979,28533.0,28532.0,0.52910515]
[1680694904626,0.3555979,28533.0,28532.0,0.73857111]
[1680694905490,0.3555979,28533.0,28532.0,0.52910515]
[1680694907242,0.3555979,28533.0,28532.0,0.18544605]
[1680694907466,0.3555979,28533.0,28532.0,0.18526605]
[1680694908345,0.3555979,28533.0,28532.0,0.58747292]
[1680694908551,0.3555979,28533.0,28532.0,0.58765292]
[1680694909826,0.3561079,28533.0,28532.0,0.58747292]
[1680694910239,0.3555979,28533.0,28532.0,0.58765292]
[1680694911332,0.3555979,28533.0,28532.0,0.71340267]
[1680694911548,0.3555979,28533.0,28532.0,0.58765292]
[1680694919602,0.001,28533.0,28532.0,0.29224596]
[1680694919811,0.001,28533.0,28532.0,0.47943658]
[1680694922847,0.00090781,28533.0,28532.0,0.47943658]
[1680694923028,0.00090781,28533.0,28532.0,0.68883571]
[1680694923224,0.00090781,28533.0,28532.0,0.47943658]
[1680694925427,0.00090781,28533.0,28532.0,0.68874317]
[1680694926388,0.00090781,28533.0,28532.0,0.47943658]
[1680694927963,0.00051,28538.0,28532.0,0.68886357]
[1680694928108,0.35471056,28537.0,28535.0,0.08369867]
[1680694928751,0.054057,28536.0,28535.0,0.08369867]
[1680694928955,0.40876756,28536.0,28535.0,0.08369867]
[1680694929148,0.35471056,28536.0,28535.0,0.08369867]
[1680694930256,0.52471056,28536.0,28535.0,0.08369867]
[1680694930663,0.52471056,28536.0,28535.0,0.47881661]
[1680694930819,0.52459075,28536.0,28535.0,0.47799661]
[1680694931022,0.53559075,28536.0,28535.0,0.47899661]
[1680694935115,0.181,28536.0,28535.0,0.37782433]
[1680694935336,0.181,28536.0,28535.0,0.34779619]
[1680694935559,0.181,28536.0,28535.0,0.29838]
[1680694935786,0.181,28536.0,28535.0,0.2997]
[1680694936005,0.181,28536.0,28535.0,0.4471]
[1680694936215,0.181,28536.0,28535.0,0.4475]
[1680694937083,0.17,28536.0,28535.0,0.4465]
[1680694937547,0.172,28536.0,28535.0,0.29213075]
[1680694937760,0.17,28536.0,28535.0,0.35523075]
[1680694937999,0.172,28536.0,28535.0,0.36623075]
[1680694938793,0.172,28536.0,28535.0,0.21883075]
[1680694939377,0.172,28536.0,28535.0,0.15972]
[1680694939552,0.172,28536.0,28535.0,0.30972]
[1680694940174,0.172,28536.0,28535.0,0.32072]
[1680694940787,0.172,28536.0,28535.0,0.72072]
[1680694941430,0.172,28536.0,28535.0,0.92936383]
[1680694947989,0.172,28536.0,28535.0,1.30646383]
[1680694950151,0.172,28536.0,28535.0,1.80857439]
[1680694950352,0.172,28536.0,28535.0,1.82531812]
[1680694951180,0.172,28536.0,28535.0,2.00052812]
[1680694951449,0.172,28536.0,28535.0,1.85352812]
[1680694952109,0.172,28536.0,28535.0,2.15352812]
[1680694952523,0.172,28536.0,28535.0,2.13598439]
[1680694952957,0.172,28536.0,28535.0,1.92734056]
[1680694953187,0.172,28536.0,28535.0,2.13574824]
[1680694953571,0.172,28536.0,28535.0,2.1357482]
[1680694953795,0.172,28536.0,28535.0,1.92734056]
[1680694954212,0.172,28536.0,28535.0,2.14081786]
[1680694954421,0.172,28536.0,28535.0,2.14093786]
[1680694954628,0.172,28536.0,28535.0,2.06723786]
[1680694954831,0.172,28536.0,28535.0,1.73696581]
[1680694955038,0.172,28536.0,28535.0,2.19647856]
[1680694955440,0.172,28536.0,28535.0,1.841768]
[1680694958142,0.172,28536.0,28535.0,1.38225525]
[1680694958706,0.172,28536.0,28535.0,1.72727023]
[1680694959149,0.17193463,28536.0,28535.0,1.38213525]
[1680694959701,0.17193463,28536.0,28535.0,1.78640414]
[1680694960017,0.17193463,28536.0,28535.0,1.38213525]
[1680694960243,0.17193463,28536.0,28535.0,1.70473047]
[1680694960644,0.17193463,28536.0,28535.0,1.42112506]
[1680694960863,0.17193463,28536.0,28535.0,0.31390005]
[1680694961071,0.17193463,28536.0,28535.0,0.10541024]
[1680694961472,0.17244463,28536.0,28535.0,0.10541024]
[1680694962889,0.17044463,28536.0,28535.0,0.09441024]
[1680694963064,0.17344463,28536.0,28535.0,0.10441024]
[1680694963262,0.17044463,28536.0,28535.0,0.09441024]
[1680694963468,0.17144463,28536.0,28535.0,0.10441024]
[1680694963871,0.17144463,28536.0,28535.0,0.44368899]
[1680694967919,0.17144463,28536.0,28535.0,0.56879445]
[1680694970155,0.17144463,28536.0,28535.0,0.48538421]
[1680694972361,0.17144463,28536.0,28535.0,0.6521788]
[1680694973491,0.17144463,28536.0,28535.0,0.52707334]
[1680694976945,0.17144463,28536.0,28535.0,0.18779459]
[1680694977151,0.17144463,28536.0,28535.0,0.22941525]
[1680694977357,0.17093463,28536.0,28535.0,0.22941525]
[1680694977777,0.17144463,28536.0,28535.0,0.22941525]
[1680694978596,0.17044463,28536.0,28535.0,0.21941525]
[1680694978803,0.17044463,28536.0,28535.0,0.61335228]
[1680694979074,0.17044463,28536.0,28535.0,0.63735228]
[1680694979075,0.17144463,28536.0,28535.0,0.63735228]
[1680694979510,0.17144463,28536.0,28535.0,0.035]
[1680694979724,0.17093463,28536.0,28535.0,0.035]
[1680694979931,0.17093463,28536.0,28535.0,0.38647302]
[1680694980137,0.17144463,28536.0,28535.0,0.38647302]
[1680694981580,0.17144463,28536.0,28535.0,0.39386787]
[1680694983280,0.17144463,28536.0,28535.0,0.44706071]
[1680694983720,0.1713435,28536.0,28535.0,0.44706071]
[1680694984027,0.1708335,28536.0,28535.0,0.035]
[1680694984651,0.1708335,28536.0,28535.0,0.38575816]
[1680694988118,0.1708335,28536.0,28535.0,0.035]
[1680694988330,0.1708335,28536.0,28535.0,0.1087]
[1680694988738,0.1708335,28536.0,28535.0,0.47736105]
[1680694988945,0.1708335,28536.0,28535.0,0.1087]
[1680694989407,0.1708335,28536.0,28535.0,0.53855642]
[1680694996064,0.1708335,28536.0,28535.0,0.46485642]
[1680694999258,0.1708335,28536.0,28535.0,0.46435642]
[1680695006449,0.1708335,28536.0,28535.0,0.71479301]
[1680695008791,0.1708335,28536.0,28535.0,0.78849301]
[1680695011352,0.1708335,28536.0,28535.0,0.46435642]
[1680695014201,0.1708335,28536.0,28535.0,0.0345]
[1680695014404,0.1708335,28536.0,28535.0,0.73906301]
[1680695015665,0.1708335,28536.0,28535.0,0.48862642]
[1680695015872,0.1708335,28536.0,28535.0,0.73906301]
[1680695017619,0.1708335,28536.0,28535.0,0.48862642]
[1680695018040,0.1708335,28536.0,28535.0,0.73906301]
[1680695018240,0.1708335,28536.0,28535.0,0.48862642]
[1680695018441,0.1708335,28536.0,28535.0,0.73906301]
[1680695020328,0.1708335,28536.0,28535.0,0.48862642]
[1680695020729,0.1708335,28536.0,28535.0,0.73906301]
[1680695021696,0.1708335,28536.0,28535.0,0.28493659]
[1680695021697,0.17075839,28536.0,28535.0,0.28493659]
[1680695021902,0.17075839,28536.0,28535.0,0.68880453]
[1680695027862,0.17075839,28536.0,28535.0,0.28493659]
[1680695028030,0.17075839,28536.0,28535.0,0.72417881]
[1680695029317,0.17075839,28536.0,28535.0,0.73857527]
[1680695031616,0.17075839,28536.0,28535.0,0.81217527]
[1680695035747,0.17075839,28536.0,28535.0,0.65731727]
[1680695036073,0.17075839,28536.0,28535.0,0.66031727]
[1680695036767,0.17075839,28536.0,28535.0,0.66024131]
[1680695038938,0.17075839,28536.0,28535.0,0.58664131]
[1680695043577,0.17064531,28536.0,28535.0,0.0767]
[1680695044357,0.17064531,28536.0,28535.0,0.53378142]
[1680695044784,0.17064531,28536.0,28535.0,0.0767]
[1680695045427,0.17064531,28536.0,28535.0,0.50273279]
[1680695046039,0.17064531,28536.0,28535.0,0.0767]
[1680695047391,0.17064531,28536.0,28535.0,0.42285852]
[1680695047616,0.17064531,28536.0,28535.0,0.32787346]
[1680695048257,0.17064531,28536.0,28535.0,0.32787306]
[1680695049218,0.17064531,28536.0,28535.0,0.72942996]
[1680695049445,0.17064531,28536.0,28535.0,0.32787306]
[1680695049643,0.17064531,28536.0,28535.0,0.42380713]
[1680695049845,0.17064531,28536.0,28535.0,0.6749674]
[1680695050083,0.17064531,28536.0,28535.0,0.32786027]
[1680695050428,0.17064531,28536.0,28535.0,0.70563678]
[1680695052207,0.17064531,28536.0,28535.0,0.70540909]
[1680695052406,0.17064531,28536.0,28535.0,0.32763258]
[1680695052947,0.17064531,28536.0,28535.0,0.71020866]
[1680695053144,0.17064531,28536.0,28535.0,0.32763258]
[1680695053546,0.17053023,28536.0,28535.0,0.69399221]
[1680695053803,0.17053023,28536.0,28535.0,0.32763258]
[1680695054001,0.17053023,28536.0,28535.0,0.76990198]
[1680695056814,0.17053023,28536.0,28535.0,0.72660295]
[1680695060247,0.17053023,28536.0,28535.0,0.32763258]
[1680695060452,0.17053023,28536.0,28535.0,0.40133258]
[1680695060655,0.17053023,28536.0,28535.0,0.15017231]
[1680695061463,0.17053023,28536.0,28535.0,0.40128361]
[1680695061695,0.17053023,28536.0,28535.0,0.40978361]
[1680695061874,0.17053023,28536.0,28535.0,0.15867231]
[1680695062431,0.17053023,28536.0,28535.0,0.88198287]
[1680695063597,0.17053023,28536.0,28535.0,1.13308587]
[1680695063799,0.17053023,28536.0,28535.0,1.38418875]
[1680695064013,0.17053023,28536.0,28535.0,1.13308587]
[1680695066262,0.17053023,28536.0,28535.0,1.13320587]
[1680695067657,0.17053023,28536.0,28535.0,1.13326587]
[1680695067867,0.17053023,28536.0,28535.0,1.05956587]
[1680695068300,0.17053023,28536.0,28535.0,1.49597804]
[1680695069070,0.17053023,28536.0,28535.0,1.05956587]
[1680695070552,0.17053023,28536.0,28535.0,1.38163929]
[1680695070909,0.17053023,28536.0,28535.0,1.05956587]
[1680695071111,0.17053023,28536.0,28535.0,1.43316867]
[1680695071308,0.17053023,28536.0,28535.0,1.05956587]
[1680695071710,0.17053023,28536.0,28535.0,1.50377803]
[1680695071914,0.17053023,28536.0,28535.0,1.75485404]
[1680695072112,0.17053023,28536.0,28535.0,1.50377803]
[1680695072314,0.17053023,28536.0,28535.0,1.75485625]
[1680695072921,0.17053023,28536.0,28535.0,1.47318201]
[1680695073930,0.17053023,28536.0,28535.0,1.72426469]
[1680695074138,0.17053023,28536.0,28535.0,1.35566469]
[1680695074729,0.17043991,28536.0,28535.0,0.94186733]
[1680695074930,0.17043991,28536.0,28535.0,0.69078587]
[1680695075132,0.17043991,28536.0,28535.0,1.08980494]
[1680695075337,0.17043991,28536.0,28535.0,1.34088718]
[1680695076354,0.17043991,28536.0,28535.0,1.34088846]
[1680695076592,0.17043991,28536.0,28535.0,1.08980494]
[1680695076791,0.17043991,28536.0,28535.0,1.34088921]
[1680695077292,0.17043991,28536.0,28535.0,1.08980494]
[1680695077744,0.17043991,28536.0,28535.0,0.69078587]
[1680695078376,0.17043991,28536.0,28535.0,1.11350136]
[1680695079298,0.17043991,28536.0,28535.0,0.69078587]
[1680695080129,0.17043991,28536.0,28535.0,1.10486769]
[1680695081967,0.17043991,28536.0,28535.0,0.69078587]
[1680695084147,0.17043991,28536.0,28535.0,1.04045719]
[1680695085296,0.17043991,28536.0,28535.0,0.68811987]
[1680695086038,0.17043991,28536.0,28535.0,1.10102977]
[1680695090117,0.17043991,28536.0,28535.0,0.68811987]
[1680695090345,0.17043991,28536.0,28535.0,1.06307551]
[1680695092034,0.17043991,28536.0,28535.0,0.70836495]
[1680695094843,0.17043991,28536.0,28535.0,0.69986495]
[1680695095946,0.17043991,28536.0,28535.0,0.32490931]
[1680695096173,0.17043991,28536.0,28535.0,0.66335764]
[1680695098969,0.17043991,28536.0,28535.0,0.58965764]
[1680695099638,0.17043991,28536.0,28535.0,0.25120931]
[1680695099842,0.17043991,28536.0,28535.0,0.57810253]
[1680695102270,0.17043991,28536.0,28535.0,0.25120931]
[1680695102993,0.17043991,28536.0,28535.0,0.62811545]
[1680695104779,0.17043991,28536.0,28535.0,0.57441556]
[1680695105597,0.17034792,28536.0,28535.0,0.57441556]
[1680695106013,0.17034792,28536.0,28535.0,0.25120931]
[1680695106431,0.17034792,28536.0,28535.0,0.65080377]
[1680695106642,0.17034792,28536.0,28535.0,0.25120931]
[1680695106851,0.17034792,28536.0,28535.0,0.64892007]
[1680695109459,0.17034792,28536.0,28535.0,0.58681701]
[1680695109668,0.17034792,28536.0,28535.0,4.86681701]
[1680695110632,0.17034792,28536.0,28535.0,4.53120931]
[1680695111310,0.17034792,28536.0,28535.0,4.93980478]
[1680695111521,0.17034792,28536.0,28535.0,4.53120931]
[1680695111726,0.17034792,28536.0,28535.0,4.87653034]
[1680695112790,0.17034792,28536.0,28535.0,4.95023034]
[1680695112999,0.17034792,28536.0,28535.0,4.60490931]
[1680695113295,0.17034792,28536.0,28535.0,4.96726616]
[1680695114838,0.17034792,28536.0,28535.0,4.60490931]
[1680695115047,0.17034792,28536.0,28535.0,4.61340931]
[1680695117740,0.17034792,28536.0,28535.0,5.00772882]
[1680695122927,0.17034792,28536.0,28535.0,4.61340931]
[1680695123606,0.17034792,28536.0,28535.0,5.00063576]
[1680695124019,0.17034792,28536.0,28535.0,4.61340931]
[1680695124849,0.17034792,28536.0,28535.0,5.01805996]
[1680695126746,0.17034792,28536.0,28535.0,5.00955996]
[1680695127416,0.17027122,28536.0,28535.0,5.00955996]
[1680695128929,0.17027122,28536.0,28535.0,4.93585996]
[1680695131092,0.16527122,28536.0,28535.0,4.93585996]
[1680695145140,0.16527122,28536.0,28535.0,4.77354484]
[1680695148901,0.16515714,28536.0,28535.0,4.77354484]
[1680695149611,0.16515714,28536.0,28535.0,4.76354484]
[1680695150495,0.16515714,28536.0,28535.0,5.20512094]
[1680695150708,0.16515714,28536.0,28535.0,5.72215848]
[1680695150922,0.16515714,28536.0,28535.0,7.04095848]
[1680695154419,0.16515714,28536.0,28535.0,7.04107848]
[1680695155233,0.16515714,28536.0,28535.0,5.94107848]
[1680695156311,0.16515714,28536.0,28535.0,5.69236848]
[1680695156715,0.16515714,28536.0,28535.0,5.48206848]
[1680695157122,0.16515714,28536.0,28535.0,5.48194848]
[1680695157325,0.16515714,28536.0,28535.0,5.48206848]
[1680695157964,0.16515714,28536.0,28535.0,5.85274039]
[1680695158233,0.16515714,28536.0,28535.0,5.48414039]
[1680695158871,0.16515714,28536.0,28535.0,5.4052462]
[1680695159075,0.16515714,28536.0,28535.0,5.03457429]
[1680695159288,0.16515714,28536.0,28535.0,5.40317429]
[1680695160241,0.16515714,28536.0,28535.0,5.77380849]
[1680695160450,0.16515714,28536.0,28535.0,5.77380885]
[1680695160658,0.16515714,28536.0,28535.0,5.40317429]
[1680695161602,0.16515714,28536.0,28535.0,5.7738017]
[1680695161812,0.16515714,28536.0,28535.0,5.45317429]
[1680695162824,0.16515714,28536.0,28535.0,5.82380906]
[1680695163025,0.16415714,28536.0,28535.0,5.82380906]
[1680695163274,0.16615714,28536.0,28535.0,5.83680906]
[1680695163486,0.16615714,28536.0,28535.0,5.83686906]
[1680695163891,0.16615714,28536.0,28535.0,5.4362793]
[1680695170221,0.16605854,28536.0,28535.0,5.09583477]
[1680695170434,0.16605854,28536.0,28535.0,5.42813451]
[1680695171124,0.16605854,28536.0,28535.0,5.09583477]
[1680695171323,0.16605854,28536.0,28535.0,5.44228883]
[1680695171738,0.16605854,28536.0,28535.0,5.09583477]
[1680695175034,0.16605854,28536.0,28535.0,5.45600472]
[1680695175362,0.16605854,28536.0,28535.0,5.09583477]
[1680695175905,0.16605854,28536.0,28535.0,5.54604466]
[1680695176146,0.16605854,28536.0,28535.0,5.10170989]
[1680695177543,0.16605854,28536.0,28535.0,5.08733477]
[1680695179142,0.16605854,28536.0,28535.0,5.49008044]
[1680695179557,0.16605854,28536.0,28535.0,5.08733477]
[1680695179974,0.16605854,28536.0,28535.0,5.52272716]
[1680695180174,0.16605854,28536.0,28535.0,5.15209239]
[1680695180315,0.16605854,28536.0,28535.0,5.08733477]
[1680695180953,0.16605854,28536.0,28535.0,5.44747275]
[1680695181126,0.16605854,28536.0,28535.0,5.08733477]
[1680695181348,0.16605854,28536.0,28535.0,5.54056572]
[1680695181889,0.16605854,28536.0,28535.0,5.08733477]
[1680695182902,0.16605854,28536.0,28535.0,5.09583477]
[1680695183840,0.16605854,28536.0,28535.0,5.45054533]
[1680695187421,0.16605854,28536.0,28535.0,5.62576533]
[1680695190708,0.16605854,28536.0,28535.0,5.45054533]
[1680695190914,0.16605854,28536.0,28535.0,5.80900551]
[1680695191379,0.16605854,28536.0,28535.0,5.45054533]
[1680695191968,0.16605854,28536.0,28535.0,5.77681211]
[1680695192305,0.16605854,28536.0,28535.0,5.59159187]
[1680695192508,0.16605854,28536.0,28535.0,5.47681211]
[1680695192946,0.16605854,28536.0,28535.0,5.15054533]
[1680695194576,0.16605854,28536.0,28535.0,5.45054533]
[1680695195190,0.16605854,28536.0,28535.0,5.80787889]
[1680695195390,0.16605854,28536.0,28535.0,5.85531244]
[1680695195594,0.16605854,28536.0,28535.0,5.45054533]
[1680695199013,0.16605854,28536.0,28535.0,5.62576533]
[1680695199794,0.16605854,28536.0,28535.0,6.01330042]
[1680695199995,0.16605854,28536.0,28535.0,5.62576533]
[1680695201739,0.16605854,28536.0,28535.0,5.45054533]
[1680695202136,0.16605854,28536.0,28535.0,5.80139557]
[1680695202315,0.16605854,28536.0,28535.0,5.45054533]
[1680695202688,0.16605854,28536.0,28535.0,5.90321852]
[1680695202931,0.16605854,28536.0,28535.0,5.45054533]
[1680695203047,0.16605854,28536.0,28535.0,5.87464686]
[1680695203252,0.16605854,28536.0,28535.0,5.45054533]
[1680695204277,0.16605854,28536.0,28535.0,5.81328059]
[1680695204705,0.16605854,28536.0,28535.0,5.45054533]
[1680695205329,0.16605854,28536.0,28535.0,5.88444896]
[1680695205530,0.16605854,28536.0,28535.0,5.45054533]
[1680695206084,0.16605854,28536.0,28535.0,5.85259875]
[1680695206288,0.16605854,28536.0,28535.0,5.85773652]
[1680695206500,0.16605854,28536.0,28535.0,5.45054533]
[1680695207310,0.16605854,28536.0,28535.0,5.86063912]
[1680695207517,0.16605854,28536.0,28535.0,5.45054533]
[1680695207724,0.16605854,28536.0,28535.0,5.82318988]
[1680695208524,0.16605854,28536.0,28535.0,5.45054533]
[1680695208730,0.16605854,28536.0,28535.0,5.86198448]
[1680695208935,0.16605854,28536.0,28535.0,5.45054533]
[1680695209190,0.16605854,28536.0,28535.0,5.82484213]
[1680695209604,0.16605854,28536.0,28535.0,5.45054533]
[1680695209807,0.16605854,28536.0,28535.0,5.78995761]
[1680695210657,0.16605854,28536.0,28535.0,6.73995761]
[1680695211048,0.16605854,28536.0,28535.0,6.40054533]
[1680695211250,0.16605854,28536.0,28535.0,6.85947026]
[1680695211458,0.16605854,28536.0,28535.0,6.40054533]
[1680695211903,0.16605854,28536.0,28535.0,6.78651527]
[1680695212942,0.16605854,28536.0,28535.0,6.40054533]
[1680695214919,0.16605854,28536.0,28535.0,6.71388873]
[1680695215800,0.16594099,28536.0,28535.0,6.71388873]
[1680695217836,0.16594099,28536.0,28535.0,6.71382101]
[1680695218421,0.16594099,28536.0,28535.0,6.32677761]
[1680695218625,0.16594099,28536.0,28535.0,6.68853684]
[1680695218793,0.16594099,28536.0,28535.0,6.40047761]
[1680695219341,0.16594099,28536.0,28535.0,6.7866136]
[1680695219764,0.16594099,28536.0,28535.0,6.39932945]
[1680695221977,0.16594099,28536.0,28535.0,6.02869468]
[1680695222181,0.16594099,28536.0,28535.0,6.04623841]
[1680695222840,0.05110944,28536.0,28535.0,7.14623841]
[1680695223057,0.04246845,28536.0,28535.0,8.13523841]
[1680695223274,0.04246845,28536.0,28535.0,8.13623841]
[1680695223491,0.04246845,28536.0,28535.0,7.98823841]